Cogmind - Beta 9.6 @@@ ROGUE MODE // 2020.07.26 @ 21:11:56 Player: Phillammon Result: Destroyed by G-47 Trooper with Particle Gun Performance ------------- Evolutions (1) 500 Regions Visited (2) 400 Robots Destroyed (13) 65 Value Destroyed (277) 277 Prototype IDs (1) 20 Alien Tech Used (0) 0 Bonus (0) 0 TOTAL SCORE: 1262 Bonus ------- None Cogmind --------- Core Integrity 0/400 Matter 217/300 Energy 99/100 System Corruption 0% Temperature Cool (18) Movement Treading (160) Location -9/Materials Parts ------- > --- POWER (1) -------- (None) > --- PROPULSION (3) --- Light Treads Light Treads > --- UTILITY (3) ------ Transport Network Coupler > --- WEAPON (2) ------- Heavy Assault Rifle > --- INVENTORY (4) ---- Ion Engine Peak State ------------ > --- POWER ------------ Ion Engine > --- PROPULSION ------- Light Treads Compact Wheel Compact Wheel > --- UTILITY ---------- Small Storage Unit Transport Network Coupler > --- WEAPON ----------- Medium Laser Light Assault Rifle > --- INVENTORY -------- Ion Engine Light Treads EM Pulse Gun Improved EM Shotgun Grenade Launcher [Rating: 8] Favorites ----------- Power Ion Engine Engine Ion Engine Propulsion Compact Wheel Treads Light Treads Leg Aluminum Leg Wheel Compact Wheel Utility Small Storage Unit Storage Small Storage Unit Processor Transport Network Coupler Weapon Medium Laser Energy Gun Medium Laser Ballistic Gun Light Assault Rifle Launcher Grenade Launcher Build | -11 -10 -9 ------- Run | Scr Mat Mat Slots Evolved 2 | . . 2 Power . | . . . Propulsion 1 | . . 1 Utility 1 | . . 1 Weapon . | . . . Parts Attached 14 | 3 2 9 Power 2 | . 1 1 Engine 2 | . 1 1 Core . | . . . Reactor . | . . . Propulsion 6 | 3 . 3 Treads 4 | 2 . 2 Leg . | . . . Wheel 2 | 1 . 1 Hover . | . . . Flight . | . . . Utility 1 | . 1 . Device . | . . . Storage . | . . . Processor 1 | . 1 . Hackware . | . . . Protection . | . . . Artifact . | . . . Weapon 5 | . . 5 Energy Gun 2 | . . 2 Energy Cannon . | . . . Ballistic Gun 2 | . . 2 Ballistic Cannon . | . . . Launcher 1 | . . 1 Special Weapon . | . . . Impact Weapon . | . . . Slashing Weapon . | . . . Piercing Weapon . | . . . Special Melee Weapon . | . . . Unidentified Prototypes 1 | . . 1 Parts Lost 11 | . 1 10 Power 2 | . . 2 Propulsion 3 | . . 3 Utility 1 | . . 1 Weapon 5 | . 1 4 Highest Loss Streak 10 | . 1 10 Average Slot Usage (%) 76 | . 82 69 Engine 11 | . 14 9 Treads 12 | . 14 11 Wheel 13 | . 14 12 Storage 12 | . 14 10 Processor 7 | . 3 11 Energy Gun 15 | . 21 8 Ballistic Gun 2 | . . 6 Naked Turns . | . . . Heaviest Build 14 | 12 12 14 Greatest Support 40 | 16 16 40 Greatest Overweight (x) 3 | . . 3 Average Overweight (x) . | . . . Largest Inventory Capacity 6 | 6 6 6 Average Capacity 5 | 6 6 5 Most Carried 6 | 6 6 6 Average Carried 4 | 4 4 4 Final Capacity 6 | 6 6 4 Final Carried 6 | 4 6 1 Class Distribution -------------------- 100% | Mutant Dominant Class ---------------- Mutant | -10/Materials Mutant | -9/Materials Resources | -11 -10 -9 ----------- Run | Scr Mat Mat Matter Collected 268 | 222 8 38 Remotely . | . . . Salvage Created 418 | . 135 283 Parts 27 | . 13 14 Haulers Intercepted 2 | . 1 1 Recyclers Shooed 1 | . . 1 Parts Field Recycled . | . . . Retrieved Matter . | . . . Parts Self-Destructed . | . . . Prevented . | . . . Kills | -11 -10 -9 ------- Run | Scr Mat Mat Combat Hostiles Destroyed 11 | . 6 5 Guns 10 | . 6 4 AOE 1 | . . 1 Classes Destroyed 4 | . 2 2 Hauler 2 | . 1 1 Swarmer 6 | . 6 . Grunt 2 | . . 2 Sentry 3 | . . 3 Best Kill Streak 4 | . 4 3 Combat Bots Only 3 | . 3 2 Max Kills in Single Turn 1 | . 1 1 Gunslinging . | . . . Exploded 1 | . . 1 Melee . | . . . Uniques/NPCs Destroyed . | . . . Combat | -11 -10 -9 -------- Run | Scr Mat Mat Damage Taken 1433 | . 168 1265 Core 421 | . 15 406 Absorbed by Shields . | . . . Core Remaining (%) 97 | 100 94 . Volleys Fired 47 | . 14 33 Largest 2 | . 2 2 Hottest 90 | . 90 70 Shots Fired 71 | . 26 45 Gun 69 | . 26 43 Cannon . | . . . Launcher 2 | . . 2 Special . | . . . Kinetic 26 | . . 26 Thermal 38 | . 26 12 Explosive 2 | . . 2 Electromagnetic 5 | . . 5 Robot Hit Streak 8 | . 6 8 Robot Miss Streak 2 | . 1 2 Penetration Max . | . . . Secondary Targets 4 | . 2 2 Max Gunslinging Chain 1 | . 1 1 Shots Hit Robots 48 | . 17 31 Core Hits 21 | . 8 13 Critical Hits . | . . . Critical Kills . | . . . Critical Parts Destroyed . | . . . Melee Attacks . | . . . Impact . | . . . Slashing . | . . . Piercing . | . . . Sneak Attacks . | . . . Combat Hostiles . | . . . Follow-up Attacks . | . . . Damage Inflicted 699 | . 198 501 Guns 575 | . 198 377 Cannons . | . . . Explosions 124 | . . 124 Melee . | . . . Ramming . | . . . Kinetic 215 | . . 215 Thermal 320 | . 198 122 Explosive 124 | . . 124 Electromagnetic 40 | . . 40 Impact . | . . . Slashing . | . . . Piercing . | . . . Highest Corruption . | . . . Average Corruption . | . . . Corruption Purged . | . . . Overload Shots . | . . . Overflow Damage . | . . . Projectiles . | . . . Explosions . | . . . Melee . | . . . Knockbacks . | . . . Impact . | . . . Kinetic . | . . . Secondary . | . . . Self-Inflicted Damage 29 | . . 29 Shots 1 | . . 1 Rammed . | . . . Targets Rammed . | . . . Kicked . | . . . Crushed . | . . . Highest Temperature 150 | . 150 128 Average Temperature 53 | . 60 47 Received Heat Transfer 558 | . . 558 Siege Activations . | . . . Robots Corrupted . | . . . Combat Hostiles . | . . . Parts Fried . | . . . Impact Corruptions . | . . . Robots Melted . | . . . Combat Hostiles . | . . . Parts Melted . | . . . Heat Transferred 926 | . 556 370 Parts Sabotaged . | . . . Parts Stolen . | . . . Parts Stripped . | . . . Power Chain Reactions . | . . . Missiles Intercepted . | . . . Alert | -11 -10 -9 ------- Run | Scr Mat Mat Peak Influence 215 | . 151 215 Average Influence 114 | . 97 143 Maximum Alert Level 1 | . . 1 Low Security (%) 98 | 100 100 96 Level 1 1 | . . 4 Level 2 . | . . . Level 3 . | . . . Level 4 . | . . . Level 5 . | . . . High Security . | . . . Max Security . | . . . Squads Dispatched 1 | . . 1 Investigation 1 | . . 1 Extermination . | . . . Reinforcement . | . . . Assault . | . . . Garrison . | . . . Intercept . | . . . Construction Impeded . | . . . Haulers Reinforced . | . . . Stealth | -11 -10 -9 --------- Run | Scr Mat Mat Distress Signals . | . . . Communications Jammed . | . . . Distress Signals . | . . . Times Spotted 13 | . 6 7 Peak Tracking Total 6 | . 3 6 Tactical Retreats . | . . . Traps | -11 -10 -9 ------- Run | Scr Mat Mat Traps Triggered . | . . . Indirectly . | . . . Trap Hack Attempts . | . . . Triggered . | . . . Disarmed . | . . . Reprogrammed . | . . . Reused . | . . . Traps Extracted . | . . . Installed . | . . . Triggered . | . . . Machines | -11 -10 -9 ---------- Run | Scr Mat Mat Machines Disabled 1 | . . 1 Max in Single Turn 1 | . . 1 Machines Sabotaged . | . . . Garrisons Compromised . | . . . Overloaded Fab Kills . | . . . Fab Network Shutdowns . | . . . Hacking | -11 -10 -9 --------- Run | Scr Mat Mat Machines Accessed 3 | . 1 2 Terminals 2 | . 1 1 Fabricators . | . . . Repair Stations . | . . . Recycling Units 1 | . . 1 Scanalyzers . | . . . Garrison Access . | . . . Total Hacks 11 | . 4 7 Successful 6 | . 1 5 Failed 5 | . 3 2 Catastrophic . | . . . Database Lockouts . | . . . Manual 10 | . 4 6 Terminals 9 | . 4 5 Fabricators . | . . . Repair Stations . | . . . Recycling Units 2 | . . 2 Scanalyzers . | . . . Garrison Access . | . . . Terminal Hacks . | . . . Fabricator Hacks . | . . . Repair Station Hacks . | . . . Recycling Unit Hacks 1 | . . 1 Retrieve Components 1 | . . 1 Scanalyzer . | . . . Garrison Access Hacks . | . . . Unauthorized Hacks 5 | . 1 4 Terminals 4 | . 1 3 Assimilate 1 | . . 1 Botnet 2 | . 1 1 Operators 1 | . . 1 Fabricators . | . . . Repair Stations . | . . . Recycling Units 1 | . . 1 Tunnel 1 | . . 1 Scanalyzers . | . . . Garrison Access . | . . . Data Cores Recovered . | . . . Used . | . . . Hacking Detections 2 | . 1 1 Full Trace Events 1 | . 1 . Feedback Events . | . . . Feedback Blocked . | . . . Robot Schematics Acquired . | . . . Robots Built . | . . . Matter . | . . . Time . | . . . Total Robot Build Rating . | . . . Part Schematics Acquired . | . . . Parts Built . | . . . Matter . | . . . Time . | . . . Total Part Build Rating . | . . . Parts Repaired . | . . . Time . | . . . Parts Recycled . | . . . Recycled Matter . | . . . Retrieved Matter . | . . . Retrieved Components 3 | . . 3 Parts Scanalyzed . | . . . Part Schematics Acquired . | . . . Parts Damaged . | . . . Bothacking | -11 -10 -9 ------------ Run | Scr Mat Mat Used RIF Installer . | . . . Robots Hacked . | . . . Non-combat . | . . . Combat . | . . . Robot Hacks Applied . | . . . Relay Couplers Released . | . . . Robots Rewired . | . . . Allies Hacked . | . . . Hacks Repelled . | . . . Allies | -11 -10 -9 -------- Run | Scr Mat Mat Total Allies . | . . . Largest Group . | . . . Highest-Rated Group . | . . . Highest-Rated Ally . | . . . Total Orders . | . . . Ally Attacks . | . . . Total Damage . | . . . Kills . | . . . Allies Corrupted . | . . . Allies Melted . | . . . Intel | -11 -10 -9 ------- Run | Scr Mat Mat Robot Analysis Total . | . . . Derelict Logs Recovered . | . . . Drone Launches . | . . . Drone Recoveries . | . . . Exploration | -11 -10 -9 ------------- Run | Scr Mat Mat Turns Passed 381 | 15 191 175 Spaces Moved 222 | 9 135 78 Core 3 | . . 3 Treads 5 | . . 5 Legs . | . . . Wheels 214 | 9 135 70 Hover . | . . . Flight . | . . . Fastest Speed 100 | 100 100 100 Average Speed 101 | 100 100 105 Slowest Speed 200 | 100 100 200 Overloaded Moves . | . . . Propulsion Burnouts . | . . . Robots Hopped . | . . . Cave-ins Triggered . | . . . Exploration Rate (%) 11 | 2 20 12 Regions Visited 2 Branch Regions . Pre-discovered Areas 1 | . . 1 Known Exits Taken . | . . . Unknown Exits Taken 2 | 1 1 . Scrap Searched . | . . . Spaces Dug 8 | . . 8 Terrain Destroyed 14 | . . 14 Melee . | . . . Projectile . | . . . AOE 14 | . . 14 Actions | -11 -10 -9 --------- Run | Scr Mat Mat Total 310 | 14 164 132 Wait 16 | . 9 7 Move 220 | 8 134 78 Hop . | . . . Pick Up 8 | . 4 4 Fast Attach 1 | 1 . . Attach 10 | . 1 9 Detach . | . . . Swap 3 | 2 1 . Drop 5 | 3 1 1 Fire 47 | . 14 33 Melee . | . . . Ram . | . . . Kick . | . . . Crush . | . . . Escape Stasis . | . . . Rewire . | . . . Trap . | . . . Miscellaneous . | . . . Route ------- -11/Scrapyard -10/Materials -9/Materials (discovered 1 exit: [*Min]) History --------- Turn | Location | Event 8 | -11/Scrapyard | Discovered new exit (range 0) 16 | -11/Scrapyard | Entered Materials 204 | -10/Materials | Discovered new exit (range 4) 207 | -10/Materials | Entered another Materials area 207 | -9/Materials | Evolved 2 slots: Propulsion x1, Utility x1 272 | -9/Materials | Discovered new exit (range 15) 308 | -9/Materials | Build established: Mutant 347 | -9/Materials | Core integrity fell below 50% 359 | -9/Materials | Core integrity fell below 20% 382 | -9/Materials | Destroyed by G-47 Trooper with Particle Gun Last Messages --------------- 00338_ Dropped Faulty Imp. EM Shotgun. 00340_ R-06 Scavenger collects Imp. Ion Engine. 00344_ Ion Engine destroyed. 00350_ Acquired Imp. Ion Engine. 00352_ G-47 Trooper misfires. 00354_ R-06 Scavenger collects Lgt. Treads. 00356_ EM Pulse Gun destroyed. 00358_ R-06 Scavenger collects Imp. Ion Engine. 00358_ Acquired Lgt. Treads. 00361_ Terminal disabled. 00362_ R-06 Scavenger collects Lgt. Armor Plating. 00363_ G-34 Mercenary destroyed. 00364_ R-06 Scavenger collects Aluminum Leg. 00366_ Imp. Ion Engine destroyed. 00370_ Acquired Hvy. Assault Rifle. 00371_ R-06 Scavenger collects Heat Sink. 00373_ Sml. Storage Unit destroyed. 00375_ R-06 Scavenger collects Aluminum Leg. 00376_ Grenade Launcher destroyed. 00382_ Y-45 Defender destroyed. Map ----- +----------------------------------------------------+ | | | | | | | | | #############????????????????????????????????????? | | # #????????????????????????????????????? | | # #????????????????????????????????????? | | # #????????????????????????????????????? | | # """"" #????????????????????????????????????? | | # """"""""" #????????????????????????????????????? | | # """ """ #????????????????????????????????????? | | # #????????????????????????????????????? | | ######+#############+########## ?????????????????? | | ???????????????? | |